[Event "Titled Tuesday Blitz July 4 Early 2023"]
[White "Radzhabov, Rodion"]
[Black "Demin, Vladimir"]
[WhiteFideId "884715"]
[BlackFideId "4167457"]
[WhiteElo "2671"]
[BlackElo "2529"]
[Result "1/2-1/2"]
[Round "4"]
[TimeControl "180+2"]
[Date "2023.07.04"]
[WhiteClock "0:00:07"]
[BlackClock "0:00:11"]
[Board "78"]

1. e4 {[%clk 0:03:00]}  e5 {[%clk 0:02:57]} 2. Nf3 {[%clk 0:02:59]}  Nc6 {[%clk 0:02:57]} 3. Nc3 {[%clk 0:02:59]}  Nf6 {[%clk 0:02:57]} 4. Be2 {[%clk 0:03:00]}  d5 {[%clk 0:02:53]} 5. exd5 {[%clk 0:03:00]}  Nxd5 {[%clk 0:02:54]} 6. O-O {[%clk 0:03:00]}  Nxc3 {[%clk 0:02:53]} 7. bxc3 {[%clk 0:03:01]}  e4 {[%clk 0:02:54]} 8. Ne1 {[%clk 0:03:01]}  Bd6 {[%clk 0:02:49]} 9. f3 {[%clk 0:03:01]}  Bf5 {[%clk 0:02:43]} 10. fxe4 {[%clk 0:03:01]}  Bxe4 {[%clk 0:02:44]} 11. Bf3 {[%clk 0:03:01]}  Bxf3 {[%clk 0:02:42]} 12. Nxf3 {[%clk 0:03:01]}  O-O {[%clk 0:02:42]} 13. d4 {[%clk 0:03:01]}  Ne7 {[%clk 0:02:35]} 14. Rb1 {[%clk 0:02:55]}  Rb8 {[%clk 0:02:31]} 15. Qd3 {[%clk 0:02:54]}  h6 {[%clk 0:02:27]} 16. c4 {[%clk 0:02:47]}  c6 {[%clk 0:02:26]} 17. Bd2 {[%clk 0:02:27]}  Qd7 {[%clk 0:02:24]} 18. Rbe1 {[%clk 0:02:14]}  Rbd8 {[%clk 0:02:22]} 19. c3 {[%clk 0:02:08]}  Ng6 {[%clk 0:02:18]} 20. Bc1 {[%clk 0:01:43]}  Rfe8 {[%clk 0:02:09]} 21. g3 {[%clk 0:01:26]}  Qg4 {[%clk 0:01:47]} 22. Kg2 {[%clk 0:01:21]}  Bf4 {[%clk 0:01:42]} 23. Kf2 {[%clk 0:00:34]}  Bxc1 {[%clk 0:01:39]} 24. Rxe8+ {[%clk 0:00:31]}  Rxe8 {[%clk 0:01:38]} 25. Rxc1 {[%clk 0:00:32]}  Qh3 {[%clk 0:01:33]} 26. Qf1 {[%clk 0:00:26]}  Qf5 {[%clk 0:01:32]} 27. Qd1 {[%clk 0:00:12]}  Qe6 {[%clk 0:01:09]} 28. Qd3 {[%clk 0:00:11]}  Qh3 {[%clk 0:01:09]} 29. a4 {[%clk 0:00:09]}  a5 {[%clk 0:01:08]} 30. Rb1 {[%clk 0:00:09]}  Re7 {[%clk 0:01:01]} 31. Re1 {[%clk 0:00:09]}  Rxe1 {[%clk 0:01:00]} 32. Kxe1 {[%clk 0:00:10]}  Qg2 {[%clk 0:01:00]} 33. Qe2 {[%clk 0:00:11]}  Qh1+ {[%clk 0:00:55]} 34. Qf1 {[%clk 0:00:10]}  Qxf1+ {[%clk 0:00:55]} 35. Kxf1 {[%clk 0:00:11]}  Kf8 {[%clk 0:00:55]} 36. c5 {[%clk 0:00:11]}  Ke7 {[%clk 0:00:55]} 37. Nd2 {[%clk 0:00:11]}  Ke6 {[%clk 0:00:52]} 38. Nc4 {[%clk 0:00:11]}  Kd7 {[%clk 0:00:46]} 39. Nxa5 {[%clk 0:00:10]}  Kc8 {[%clk 0:00:47]} 40. Ke2 {[%clk 0:00:10]}  Ne7 {[%clk 0:00:47]} 41. Nc4 {[%clk 0:00:09]}  Kd7 {[%clk 0:00:46]} 42. Kd3 {[%clk 0:00:08]}  f5 {[%clk 0:00:45]} 43. Ne5+ {[%clk 0:00:06]}  Kc7 {[%clk 0:00:42]} 44. c4 {[%clk 0:00:06]}  g5 {[%clk 0:00:42]} 45. h4 {[%clk 0:00:05]}  b6 {[%clk 0:00:33]} 46. cxb6+ {[%clk 0:00:03]}  Kxb6 {[%clk 0:00:34]} 47. Nf7 {[%clk 0:00:02]}  gxh4 {[%clk 0:00:33]} 48. gxh4 {[%clk 0:00:03]}  Ng8 {[%clk 0:00:32]} 49. Nd6 {[%clk 0:00:03]}  Ne7 {[%clk 0:00:32]} 50. Kc3 {[%clk 0:00:03]}  Ka5 {[%clk 0:00:29]} 51. Kb3 {[%clk 0:00:02]}  f4 {[%clk 0:00:30]} 52. c5 {[%clk 0:00:02]}  f3 {[%clk 0:00:26]} 53. Nc4+ {[%clk 0:00:02]}  Ka6 {[%clk 0:00:24]} 54. Nd2 {[%clk 0:00:03]}  f2 {[%clk 0:00:24]} 55. Kc3 {[%clk 0:00:03]}  Nf5 {[%clk 0:00:22]} 56. Kd3 {[%clk 0:00:03]}  Ng3 {[%clk 0:00:20]} 57. d5 {[%clk 0:00:02]}  cxd5 {[%clk 0:00:20]} 58. Kd4 {[%clk 0:00:03]}  f1=Q {[%clk 0:00:15]} 59. Nxf1 {[%clk 0:00:03]}  Nxf1 {[%clk 0:00:16]} 60. Kxd5 {[%clk 0:00:03]}  Ne3+ {[%clk 0:00:16]} 61. Ke5 {[%clk 0:00:03]}  Ka5 {[%clk 0:00:15]} 62. Kf6 {[%clk 0:00:03]}  Ng4+ {[%clk 0:00:12]} 63. Kg6 {[%clk 0:00:02]}  Kxa4 {[%clk 0:00:11]} 64. c6 {[%clk 0:00:03]}  Ne5+ {[%clk 0:00:11]} 65. Kxh6 {[%clk 0:00:03]}  Nxc6 {[%clk 0:00:12]} 66. Kg7 {[%clk 0:00:04]}  Ne7 {[%clk 0:00:12]} 67. h5 {[%clk 0:00:03]}  Kb5 {[%clk 0:00:11]} 68. Kf6 {[%clk 0:00:02]}  Ng8+ {[%clk 0:00:12]} 69. Kg7 {[%clk 0:00:01]}  Ne7 {[%clk 0:00:11]} 70. Kf7 {[%clk 0:00:01]}  Nf5 {[%clk 0:00:10]} 71. Kf6 {[%clk 0:00:02]}  Nh6 {[%clk 0:00:10]} 72. Kg6 {[%clk 0:00:02]}  Ng8 {[%clk 0:00:10]} 73. Kf7 {[%clk 0:00:03]}  Nh6+ {[%clk 0:00:11]} 74. Ke6 {[%clk 0:00:03]}  Kc5 {[%clk 0:00:10]} 75. Kf6 {[%clk 0:00:04]}  Kd6 {[%clk 0:00:10]} 76. Kg6 {[%clk 0:00:04]}  Ng8 {[%clk 0:00:10]} 77. Kg7 {[%clk 0:00:05]}  Ne7 {[%clk 0:00:10]} 78. h6 {[%clk 0:00:06]}  Nf5+ {[%clk 0:00:11]} 79. Kg6 {[%clk 0:00:07]}  Nxh6 {[%clk 0:00:11]} 1/2-1/2


[Site "https://www.chess.com"]

[Event "Titled Tuesday Blitz July 4 Early 2023"]
[White "Deng, Henry"]
[Black "Zhu, Jiner"]
[WhiteFideId "30965454"]
[BlackFideId "8608059"]
[WhiteElo "2513"]
[BlackElo "2665"]
[Result "0-1"]
[Round "4"]
[TimeControl "180+2"]
[Date "2023.07.04"]
[WhiteClock "0:00:02"]
[BlackClock "0:00:34"]
[Board "80"]

1. e4 {[%clk 0:03:00]}  e5 {[%clk 0:02:57]} 2. Nf3 {[%clk 0:02:57]}  Nc6 {[%clk 0:02:56]} 3. d4 {[%clk 0:02:57]}  exd4 {[%clk 0:02:55]} 4. Bc4 {[%clk 0:02:58]}  Nf6 {[%clk 0:02:52]} 5. e5 {[%clk 0:02:57]}  d5 {[%clk 0:02:48]} 6. Bb5 {[%clk 0:02:58]}  Ne4 {[%clk 0:02:47]} 7. Nxd4 {[%clk 0:02:58]}  Bd7 {[%clk 0:02:46]} 8. Bxc6 {[%clk 0:02:58]}  bxc6 {[%clk 0:02:47]} 9. O-O {[%clk 0:02:59]}  Be7 {[%clk 0:02:44]} 10. f3 {[%clk 0:02:59]}  Nc5 {[%clk 0:02:42]} 11. f4 {[%clk 0:02:58]}  Ne4 {[%clk 0:02:38]} 12. f5 {[%clk 0:02:46]}  Bc5 {[%clk 0:02:28]} 13. Kh1 {[%clk 0:02:07]}  Qe7 {[%clk 0:02:27]} 14. Bf4 {[%clk 0:01:41]}  Bxd4 {[%clk 0:02:22]} 15. Qxd4 {[%clk 0:01:41]}  Bxf5 {[%clk 0:02:22]} 16. Nd2 {[%clk 0:01:38]}  O-O {[%clk 0:02:17]} 17. Nxe4 {[%clk 0:01:38]}  Bxe4 {[%clk 0:02:18]} 18. c3 {[%clk 0:01:37]}  c5 {[%clk 0:02:15]} 19. Qe3 {[%clk 0:01:36]}  Rab8 {[%clk 0:02:08]} 20. Rf2 {[%clk 0:01:36]}  Rb6 {[%clk 0:02:07]} 21. Qg3 {[%clk 0:01:30]}  Rg6 {[%clk 0:02:05]} 22. Qe3 {[%clk 0:01:29]}  Rb8 {[%clk 0:02:00]} 23. Raf1 {[%clk 0:01:25]}  h6 {[%clk 0:01:40]} 24. c4 {[%clk 0:01:18]}  c6 {[%clk 0:01:27]} 25. Bg3 {[%clk 0:01:11]}  Rf8 {[%clk 0:01:24]} 26. Re2 {[%clk 0:00:49]}  Rg4 {[%clk 0:01:21]} 27. Rf4 {[%clk 0:00:33]}  Rxf4 {[%clk 0:01:21]} 28. Qxf4 {[%clk 0:00:34]}  Bd3 {[%clk 0:01:19]} 29. Rf2 {[%clk 0:00:28]}  Bxc4 {[%clk 0:01:17]} 30. Qg4 {[%clk 0:00:17]}  Bd3 {[%clk 0:01:06]} 31. Bh4 {[%clk 0:00:16]}  Qxe5 {[%clk 0:01:04]} 32. h3 {[%clk 0:00:15]}  Bg6 {[%clk 0:01:02]} 33. Bg3 {[%clk 0:00:14]}  Qe1+ {[%clk 0:00:59]} 34. Kh2 {[%clk 0:00:14]}  Qe4 {[%clk 0:00:55]} 35. Qd1 {[%clk 0:00:13]}  Re8 {[%clk 0:00:55]} 36. a3 {[%clk 0:00:13]}  d4 {[%clk 0:00:55]} 37. Qa4 {[%clk 0:00:12]}  d3 {[%clk 0:00:54]} 38. Qxa7 {[%clk 0:00:12]}  Qd4 {[%clk 0:00:50]} 39. Qc7 {[%clk 0:00:10]}  d2 {[%clk 0:00:47]} 40. Qxc6 {[%clk 0:00:11]}  Rd8 {[%clk 0:00:44]} 41. Rxd2 {[%clk 0:00:06]}  Qxd2 {[%clk 0:00:43]} 42. Qxc5 {[%clk 0:00:06]}  Be4 {[%clk 0:00:42]} 43. Bf2 {[%clk 0:00:05]}  Kh7 {[%clk 0:00:37]} 44. Kg1 {[%clk 0:00:04]}  Rd5 {[%clk 0:00:37]} 45. Qe7 {[%clk 0:00:03]}  Qd1+ {[%clk 0:00:34]} 46. Kh2 {[%clk 0:00:03]}  Qe2 {[%clk 0:00:35]} 47. Bg3 {[%clk 0:00:02]}  Qxg2# {[%clk 0:00:34]} 0-1


[Site "https://www.chess.com"]

[Event "Titled Tuesday Blitz July 4 Early 2023"]
[White "Hilary46"]
[Black "Postlmayer, Jakob"]
[BlackFideId "1643622"]
[WhiteElo "2657"]
[BlackElo "2502"]
[Result "1/2-1/2"]
[Round "4"]
[TimeControl "180+2"]
[Date "2023.07.04"]
[WhiteClock "0:00:06"]
[BlackClock "0:00:09"]
[Board "81"]

1. e4 {[%clk 0:03:00]}  c5 {[%clk 0:02:59]} 2. Nf3 {[%clk 0:03:01]}  d6 {[%clk 0:02:59]} 3. d4 {[%clk 0:03:02]}  cxd4 {[%clk 0:03:00]} 4. Nxd4 {[%clk 0:03:03]}  Nf6 {[%clk 0:03:00]} 5. Nc3 {[%clk 0:03:03]}  g6 {[%clk 0:03:01]} 6. Be3 {[%clk 0:03:03]}  Bg7 {[%clk 0:03:01]} 7. f3 {[%clk 0:03:04]}  O-O {[%clk 0:02:59]} 8. Qd2 {[%clk 0:03:04]}  Nc6 {[%clk 0:03:00]} 9. O-O-O {[%clk 0:03:05]}  d5 {[%clk 0:03:00]} 10. exd5 {[%clk 0:03:05]}  Nxd5 {[%clk 0:03:01]} 11. Nxc6 {[%clk 0:03:06]}  bxc6 {[%clk 0:03:02]} 12. Bd4 {[%clk 0:03:06]}  e5 {[%clk 0:03:02]} 13. Bc5 {[%clk 0:03:05]}  Re8 {[%clk 0:03:02]} 14. Nxd5 {[%clk 0:02:56]}  cxd5 {[%clk 0:03:03]} 15. Qxd5 {[%clk 0:02:56]}  Qxd5 {[%clk 0:03:03]} 16. Rxd5 {[%clk 0:02:57]}  Be6 {[%clk 0:03:03]} 17. Rd1 {[%clk 0:02:05]}  Bxa2 {[%clk 0:03:01]} 18. b3 {[%clk 0:01:55]}  Rec8 {[%clk 0:02:42]} 19. Rd5 {[%clk 0:01:42]}  a5 {[%clk 0:02:16]} 20. Kb2 {[%clk 0:01:32]}  a4 {[%clk 0:02:15]} 21. Kxa2 {[%clk 0:01:29]}  axb3+ {[%clk 0:02:14]} 22. Kxb3 {[%clk 0:01:30]}  Ra5 {[%clk 0:02:13]} 23. Bc4 {[%clk 0:01:04]}  Raxc5 {[%clk 0:02:12]} 24. Rxc5 {[%clk 0:01:05]}  Rxc5 {[%clk 0:02:11]} 25. Rd1 {[%clk 0:01:06]}  Rc7 {[%clk 0:02:04]} 26. Rd8+ {[%clk 0:01:05]}  Bf8 {[%clk 0:02:04]} 27. Bd5 {[%clk 0:01:04]}  Kg7 {[%clk 0:02:03]} 28. c4 {[%clk 0:01:05]}  Bc5 {[%clk 0:02:01]} 29. Ka4 {[%clk 0:01:01]}  Bg1 {[%clk 0:01:51]} 30. h3 {[%clk 0:01:01]}  f5 {[%clk 0:01:45]} 31. Kb5 {[%clk 0:00:59]}  h5 {[%clk 0:01:44]} 32. Re8 {[%clk 0:00:58]}  Bd4 {[%clk 0:01:41]} 33. Bc6 {[%clk 0:00:49]}  Kf7 {[%clk 0:01:36]} 34. Rd8 {[%clk 0:00:47]}  Ke7 {[%clk 0:01:33]} 35. Rd5 {[%clk 0:00:44]}  Rc8 {[%clk 0:01:28]} 36. c5 {[%clk 0:00:39]}  Rb8+ {[%clk 0:01:25]} 37. Kc4 {[%clk 0:00:39]}  Rb2 {[%clk 0:01:04]} 38. Ba4 {[%clk 0:00:33]}  Rxg2 {[%clk 0:00:57]} 39. c6 {[%clk 0:00:34]}  Bb6 {[%clk 0:00:47]} 40. Rd7+ {[%clk 0:00:27]}  Kf6 {[%clk 0:00:46]} 41. c7 {[%clk 0:00:23]}  Bxc7 {[%clk 0:00:46]} 42. Rxc7 {[%clk 0:00:24]}  Rh2 {[%clk 0:00:42]} 43. Be8 {[%clk 0:00:20]}  Rxh3 {[%clk 0:00:34]} 44. Rc6+ {[%clk 0:00:20]}  Ke7 {[%clk 0:00:34]} 45. Bxg6 {[%clk 0:00:20]}  Rxf3 {[%clk 0:00:34]} 46. Kd5 {[%clk 0:00:20]}  e4 {[%clk 0:00:32]} 47. Ke5 {[%clk 0:00:20]}  e3 {[%clk 0:00:27]} 48. Rc7+ {[%clk 0:00:20]}  Kd8 {[%clk 0:00:26]} 49. Rc3 {[%clk 0:00:20]}  e2 {[%clk 0:00:21]} 50. Rxf3 {[%clk 0:00:15]}  e1=Q+ {[%clk 0:00:21]} 51. Kxf5 {[%clk 0:00:16]}  h4 {[%clk 0:00:18]} 52. Kf4 {[%clk 0:00:07]}  Qe6 {[%clk 0:00:13]} 53. Bf5 {[%clk 0:00:07]}  Qh6+ {[%clk 0:00:12]} 54. Kg4 {[%clk 0:00:07]}  Ke7 {[%clk 0:00:10]} 55. Rh3 {[%clk 0:00:07]}  Qg7+ {[%clk 0:00:09]} 56. Kxh4 {[%clk 0:00:06]}  Kf6 {[%clk 0:00:09]} 57. Rf3 {[%clk 0:00:06]}  Qg5+ {[%clk 0:00:08]} 58. Kh3 {[%clk 0:00:07]}  Qxf5+ {[%clk 0:00:08]} 59. Rxf5+ {[%clk 0:00:06]}  Kxf5 {[%clk 0:00:09]} 1/2-1/2


[Site "https://www.chess.com"]

[Event "Titled Tuesday Blitz July 4 Early 2023"]
[White "Herzog2012"]
[Black "Koziorowicz, Michal"]
[BlackFideId "21809194"]
[WhiteElo "2500"]
[BlackElo "2653"]
[Result "0-1"]
[Round "4"]
[TimeControl "180+2"]
[Date "2023.07.04"]
[WhiteClock "0:00:01"]
[BlackClock "0:00:07"]
[Board "82"]

1. e4 {[%clk 0:03:00]}  c6 {[%clk 0:01:55]} 2. d4 {[%clk 0:02:45]}  g6 {[%clk 0:01:54]} 3. Nc3 {[%clk 0:02:41]}  Bg7 {[%clk 0:01:54]} 4. Nf3 {[%clk 0:02:41]}  b5 {[%clk 0:01:52]} 5. Bd3 {[%clk 0:02:29]}  d6 {[%clk 0:01:51]} 6. a4 {[%clk 0:02:29]}  b4 {[%clk 0:01:51]} 7. Ne2 {[%clk 0:02:29]}  a5 {[%clk 0:01:50]} 8. c3 {[%clk 0:02:28]}  Qb6 {[%clk 0:01:47]} 9. h3 {[%clk 0:02:23]}  Nf6 {[%clk 0:01:45]} 10. O-O {[%clk 0:02:22]}  O-O {[%clk 0:01:45]} 11. Be3 {[%clk 0:02:21]}  Ba6 {[%clk 0:01:43]} 12. Ng3 {[%clk 0:01:56]}  Bxd3 {[%clk 0:01:35]} 13. Qxd3 {[%clk 0:01:57]}  Qa6 {[%clk 0:01:36]} 14. Qxa6 {[%clk 0:01:29]}  Nxa6 {[%clk 0:01:37]} 15. Nd2 {[%clk 0:01:28]}  Rfb8 {[%clk 0:01:34]} 16. Rab1 {[%clk 0:00:57]}  Nd7 {[%clk 0:01:32]} 17. f4 {[%clk 0:00:54]}  Nb6 {[%clk 0:01:32]} 18. Ra1 {[%clk 0:00:46]}  d5 {[%clk 0:01:29]} 19. e5 {[%clk 0:00:43]}  e6 {[%clk 0:01:28]} 20. Rfc1 {[%clk 0:00:32]}  Bf8 {[%clk 0:00:42]} 21. c4 {[%clk 0:00:28]}  dxc4 {[%clk 0:00:35]} 22. Nxc4 {[%clk 0:00:29]}  Nd5 {[%clk 0:00:35]} 23. Bd2 {[%clk 0:00:29]}  c5 {[%clk 0:00:35]} 24. Nxa5 {[%clk 0:00:16]}  cxd4 {[%clk 0:00:35]} 25. Nc6 {[%clk 0:00:16]}  Rc8 {[%clk 0:00:35]} 26. Ne4 {[%clk 0:00:14]}  d3 {[%clk 0:00:25]} 27. b3 {[%clk 0:00:10]}  Nc3 {[%clk 0:00:21]} 28. Bxc3 {[%clk 0:00:07]}  bxc3 {[%clk 0:00:20]} 29. Rxc3 {[%clk 0:00:07]}  Rc7 {[%clk 0:00:15]} 30. Rac1 {[%clk 0:00:03]}  Ba3 {[%clk 0:00:15]} 31. Rd1 {[%clk 0:00:03]}  Rac8 {[%clk 0:00:15]} 32. b4 {[%clk 0:00:01]}  Bb2 {[%clk 0:00:14]} 33. Rb3 {[%clk 0:00:01]}  Rxc6 {[%clk 0:00:13]} 34. Rxb2 {[%clk 0:00:02]}  Rc4 {[%clk 0:00:13]} 35. Nd2 {[%clk 0:00:01]}  Rxb4 {[%clk 0:00:13]} 36. Rxb4 {[%clk 0:00:02]}  Nxb4 {[%clk 0:00:14]} 37. a5 {[%clk 0:00:02]}  Ra8 {[%clk 0:00:14]} 38. Nc4 {[%clk 0:00:02]}  Kf8 {[%clk 0:00:12]} 39. Kf2 {[%clk 0:00:02]}  Nd5 {[%clk 0:00:11]} 40. g3 {[%clk 0:00:01]}  Rc8 {[%clk 0:00:10]} 41. Nd6 {[%clk 0:00:01]}  Rc2+ {[%clk 0:00:10]} 42. Kf3 {[%clk 0:00:02]}  d2 {[%clk 0:00:10]} 43. Ne4 {[%clk 0:00:02]}  Ra2 {[%clk 0:00:11]} 44. Rxd2 {[%clk 0:00:02]}  Rxa5 {[%clk 0:00:11]} 45. Nf6 {[%clk 0:00:03]}  Ra3+ {[%clk 0:00:09]} 46. Kg4 {[%clk 0:00:02]}  Ne3+ {[%clk 0:00:07]} 47. Kg5 {[%clk 0:00:03]}  Kg7 {[%clk 0:00:07]} 48. g4 {[%clk 0:00:01]}  h6+ {[%clk 0:00:07]} 49. Kh4 {[%clk 0:00:02]}  Nd5 {[%clk 0:00:05]} 50. Nxd5 {[%clk 0:00:01]}  exd5 {[%clk 0:00:06]} 51. Rxd5 {[%clk 0:00:02]}  Rf3 {[%clk 0:00:07]} 52. Rd4 {[%clk 0:00:02]}  Kf8 {[%clk 0:00:06]} 53. Re4 {[%clk 0:00:02]}  Ke7 {[%clk 0:00:06]} 54. f5 {[%clk 0:00:02]}  g5+ {[%clk 0:00:06]} 55. Kh5 {[%clk 0:00:01]}  Rxh3# {[%clk 0:00:07]} 0-1


[Site "https://www.chess.com"]

[Event "Titled Tuesday Blitz July 4 Early 2023"]
[White "Senthilkumar, Pranav"]
[Black "Soham Kamotra"]
[WhiteFideId "2083477"]
[BlackFideId "46647490"]
[WhiteElo "2491"]
[BlackElo "2648"]
[Result "1-0"]
[Round "4"]
[TimeControl "180+2"]
[Date "2023.07.04"]
[WhiteClock "0:00:07"]
[BlackClock "0:00:00"]
[Board "84"]

1. Nf3 {[%clk 0:03:00]}  Nf6 {[%clk 0:02:57]} 2. c4 {[%clk 0:02:56]}  b6 {[%clk 0:02:56]} 3. Nc3 {[%clk 0:02:55]}  Bb7 {[%clk 0:02:57]} 4. d4 {[%clk 0:02:55]}  e6 {[%clk 0:02:56]} 5. g3 {[%clk 0:02:54]}  Bb4 {[%clk 0:02:53]} 6. Bg2 {[%clk 0:02:54]}  O-O {[%clk 0:02:52]} 7. O-O {[%clk 0:02:54]}  c5 {[%clk 0:02:48]} 8. dxc5 {[%clk 0:02:46]}  Bxc5 {[%clk 0:02:41]} 9. Bf4 {[%clk 0:02:44]}  a6 {[%clk 0:02:19]} 10. Qd2 {[%clk 0:02:43]}  d5 {[%clk 0:02:12]} 11. cxd5 {[%clk 0:02:42]}  Nxd5 {[%clk 0:02:12]} 12. Nxd5 {[%clk 0:02:42]}  Qxd5 {[%clk 0:02:09]} 13. Rfd1 {[%clk 0:02:37]}  Qh5 {[%clk 0:01:37]} 14. b4 {[%clk 0:02:24]}  Be7 {[%clk 0:01:33]} 15. Bd6 {[%clk 0:02:22]}  Rd8 {[%clk 0:01:28]} 16. Bxe7 {[%clk 0:02:22]}  Rxd2 {[%clk 0:01:25]} 17. Rxd2 {[%clk 0:02:22]}  Nc6 {[%clk 0:01:24]} 18. Bd6 {[%clk 0:02:20]}  Rd8 {[%clk 0:01:13]} 19. Rad1 {[%clk 0:02:18]}  h6 {[%clk 0:01:12]} 20. a3 {[%clk 0:02:17]}  b5 {[%clk 0:01:10]} 21. Bc5 {[%clk 0:01:52]}  Rxd2 {[%clk 0:01:07]} 22. Rxd2 {[%clk 0:01:53]}  Na5 {[%clk 0:00:30]} 23. g4 {[%clk 0:01:38]}  Qxg4 {[%clk 0:00:21]} 24. bxa5 {[%clk 0:01:37]}  h5 {[%clk 0:00:18]} 25. h3 {[%clk 0:01:27]}  Qg6 {[%clk 0:00:17]} 26. h4 {[%clk 0:01:21]}  Qg4 {[%clk 0:00:14]} 27. Rd4 {[%clk 0:01:10]}  Qf5 {[%clk 0:00:13]} 28. Ng5 {[%clk 0:01:07]}  Bd5 {[%clk 0:00:03]} 29. e4 {[%clk 0:01:04]}  Qf4 {[%clk 0:00:02]} 30. exd5 {[%clk 0:01:04]}  Qc1+ {[%clk 0:00:02]} 31. Kh2 {[%clk 0:00:59]}  Qxc5 {[%clk 0:00:03]} 32. Rd3 {[%clk 0:00:51]}  exd5 {[%clk 0:00:04]} 33. Rxd5 {[%clk 0:00:51]}  Qc7+ {[%clk 0:00:03]} 34. Kg1 {[%clk 0:00:51]}  f6 {[%clk 0:00:03]} 35. Nf3 {[%clk 0:00:43]}  Qxa5 {[%clk 0:00:02]} 36. Rd3 {[%clk 0:00:37]}  Qa4 {[%clk 0:00:02]} 37. Re3 {[%clk 0:00:35]}  Qc4 {[%clk 0:00:02]} 38. Ne1 {[%clk 0:00:32]}  Qxh4 {[%clk 0:00:02]} 39. Bd5+ {[%clk 0:00:30]}  Kh7 {[%clk 0:00:02]} 40. Be4+ {[%clk 0:00:30]}  Kh6 {[%clk 0:00:02]} 41. Bg2 {[%clk 0:00:28]}  Qg4 {[%clk 0:00:02]} 42. Nf3 {[%clk 0:00:23]}  Qc4 {[%clk 0:00:01]} 43. Kh2 {[%clk 0:00:19]}  Qc1 {[%clk 0:00:02]} 44. Nh4 {[%clk 0:00:15]}  Qc7+ {[%clk 0:00:03]} 45. Kg1 {[%clk 0:00:15]}  g6 {[%clk 0:00:03]} 46. Rg3 {[%clk 0:00:13]}  Qc1+ {[%clk 0:00:03]} 47. Kh2 {[%clk 0:00:13]}  g5 {[%clk 0:00:04]} 48. Nf5+ {[%clk 0:00:13]}  Kg6 {[%clk 0:00:05]} 49. Ne3 {[%clk 0:00:13]}  Kf7 {[%clk 0:00:05]} 50. Bd5+ {[%clk 0:00:13]}  Kf8 {[%clk 0:00:05]} 51. Rf3 {[%clk 0:00:13]}  Qc7+ {[%clk 0:00:05]} 52. Kg2 {[%clk 0:00:12]}  Qe5 {[%clk 0:00:06]} 53. Rf5 {[%clk 0:00:08]}  Qd6 {[%clk 0:00:06]} 54. Bf3 {[%clk 0:00:08]}  Qxa3 {[%clk 0:00:06]} 55. Rxf6+ {[%clk 0:00:08]}  Ke7 {[%clk 0:00:07]} 56. Nd5+ {[%clk 0:00:05]}  Kd8 {[%clk 0:00:07]} 57. Bxh5 {[%clk 0:00:06]}  Qd3 {[%clk 0:00:06]} 58. Bf3 {[%clk 0:00:06]}  g4 {[%clk 0:00:06]} 59. Rd6+ {[%clk 0:00:03]}  Ke8 {[%clk 0:00:04]} 60. Bxg4 {[%clk 0:00:04]}  Qe4+ {[%clk 0:00:03]} 61. Bf3 {[%clk 0:00:04]}  Qf5 {[%clk 0:00:03]} 62. Nf6+ {[%clk 0:00:05]}  Kf7 {[%clk 0:00:03]} 63. Ne4 {[%clk 0:00:05]}  Qe5 {[%clk 0:00:03]} 64. Rxa6 {[%clk 0:00:05]}  b4 {[%clk 0:00:03]} 65. Ra7+ {[%clk 0:00:05]}  Kf8 {[%clk 0:00:02]} 66. Rb7 {[%clk 0:00:06]}  Qd4 {[%clk 0:00:02]} 67. Ng3 {[%clk 0:00:07]}  Ke8 {[%clk 0:00:02]} 68. Rb8+ {[%clk 0:00:07]}  Kd7 {[%clk 0:00:02]} 69. Rb7+ {[%clk 0:00:08]}  Kc8 {[%clk 0:00:02]} 70. Rb5 {[%clk 0:00:07]}  Qf4 {[%clk 0:00:02]} 71. Rc5+ {[%clk 0:00:07]}  Kd8 {[%clk 0:00:02]} 72. Rf5 {[%clk 0:00:08]}  Qd4 {[%clk 0:00:00]} 73. Rd5+ {[%clk 0:00:07]} 1-0


[Site "https://www.chess.com"]

[Event "Titled Tuesday Blitz July 4 Early 2023"]
[White "Ahmad, Khagan"]
[Black "Begunov, Konstantin"]
[WhiteFideId "13431552"]
[BlackFideId "4118510"]
[WhiteElo "2644"]
[BlackElo "2452"]
[Result "1-0"]
[Round "4"]
[TimeControl "180+2"]
[Date "2023.07.04"]
[WhiteClock "0:00:13"]
[BlackClock "0:00:00"]
[Board "89"]

1. e4 {[%clk 0:03:00]}  c5 {[%clk 0:02:57]} 2. Nf3 {[%clk 0:02:58]}  d6 {[%clk 0:02:57]} 3. d4 {[%clk 0:02:57]}  cxd4 {[%clk 0:02:58]} 4. Nxd4 {[%clk 0:02:58]}  Nf6 {[%clk 0:02:59]} 5. Nc3 {[%clk 0:02:58]}  a6 {[%clk 0:02:59]} 6. Be3 {[%clk 0:02:58]}  Ng4 {[%clk 0:02:59]} 7. Bc1 {[%clk 0:02:57]}  Nc6 {[%clk 0:02:59]} 8. h3 {[%clk 0:02:56]}  Qb6 {[%clk 0:02:59]} 9. hxg4 {[%clk 0:02:45]}  Qxd4 {[%clk 0:02:59]} 10. Be3 {[%clk 0:02:38]}  Qxd1+ {[%clk 0:02:58]} 11. Rxd1 {[%clk 0:02:39]}  Bxg4 {[%clk 0:02:56]} 12. f3 {[%clk 0:02:39]}  Be6 {[%clk 0:02:45]} 13. Nd5 {[%clk 0:02:37]}  Rc8 {[%clk 0:02:42]} 14. c3 {[%clk 0:02:26]}  Ne5 {[%clk 0:02:31]} 15. Be2 {[%clk 0:02:13]}  Nc4 {[%clk 0:02:27]} 16. Bd4 {[%clk 0:02:10]}  b5 {[%clk 0:02:12]} 17. b3 {[%clk 0:02:03]}  Ne5 {[%clk 0:01:41]} 18. f4 {[%clk 0:01:51]}  Nd7 {[%clk 0:01:23]} 19. c4 {[%clk 0:01:35]}  Bxd5 {[%clk 0:00:50]} 20. exd5 {[%clk 0:01:34]}  b4 {[%clk 0:00:50]} 21. a3 {[%clk 0:01:24]}  a5 {[%clk 0:00:37]} 22. axb4 {[%clk 0:01:18]}  axb4 {[%clk 0:00:38]} 23. Ra1 {[%clk 0:01:18]}  e5 {[%clk 0:00:34]} 24. dxe6 {[%clk 0:01:12]}  fxe6 {[%clk 0:00:35]} 25. Bg4 {[%clk 0:01:11]}  Nc5 {[%clk 0:00:17]} 26. Bxc5 {[%clk 0:01:01]}  dxc5 {[%clk 0:00:17]} 27. Bxe6 {[%clk 0:01:01]}  Rd8 {[%clk 0:00:16]} 28. Rh3 {[%clk 0:00:47]}  Bd6 {[%clk 0:00:15]} 29. Ra7 {[%clk 0:00:36]}  Bxf4 {[%clk 0:00:12]} 30. Rxg7 {[%clk 0:00:23]}  Be5 {[%clk 0:00:12]} 31. Ra7 {[%clk 0:00:20]}  h6 {[%clk 0:00:11]} 32. Re3 {[%clk 0:00:19]}  Bc3+ {[%clk 0:00:11]} 33. Ke2 {[%clk 0:00:19]}  Rd2+ {[%clk 0:00:09]} 34. Kf1 {[%clk 0:00:17]}  Rf8+ {[%clk 0:00:09]} 35. Kg1 {[%clk 0:00:17]}  Rff2 {[%clk 0:00:07]} 36. Bd5+ {[%clk 0:00:16]}  Kf8 {[%clk 0:00:06]} 37. Rg3 {[%clk 0:00:15]}  Bg7 {[%clk 0:00:00]} 38. Rgxg7 {[%clk 0:00:13]} 1-0


[Site "https://www.chess.com"]